bitfinex/quotes_SOLUSD_20250728
["timestamp","ask_amount","ask_price","bid_price","bid_amount"]
[1753694427338,0.7,193.08,193.07,6.10557307]
[1753694427731,36.28,193.09,193.07,6.10557307]
[1753694427930,36.98,193.09,193.08,5.82124993]
[1753694428142,42.1589321,193.09,193.08,5.82124993]
[1753694428348,36.98,193.09,193.08,5.82124993]
[1753694428536,42.1589321,193.09,193.05,5.82124993]
[1753694428742,0.7,193.08,193.04,94.12124993]
[1753694428958,36.28,193.07,193.04,5.82124993]
[1753694429151,0.7,193.06,193.04,5.82124993]
[1753694429333,0.7,193.06,193.02,26.0]
[1753694429334,42.10124993,193.05,193.0,94.12124993]
[1753694429533,0.7,193.04,193.0,5.82124993]
[1753694429755,36.3,193.03,193.01,5.82124993]
[1753694430740,0.7,193.05,193.01,5.82124993]
[1753694430937,36.28,193.04,193.02,0.69]
[1753694431135,12.94570621,193.12,193.03,6.51124993]
[1753694431136,0.7,193.08,193.03,6.51124993]
[1753694431327,37.0,193.07,193.03,0.97432314]
[1753694431530,36.3,193.06,193.05,5.82124993]
[1753694432537,37.0,193.06,193.03,5.82124993]
[1753694432764,0.7,193.05,193.02,88.3]
[1753694434062,5.18027351,193.04,193.02,88.3]
[1753694434364,37.02,193.03,193.02,88.3]
[1753694435846,36.3,193.03,193.02,95.09557307]
[1753694436054,5.87900552,193.09,193.03,0.28432314]
[1753694436258,36.3,193.08,193.05,5.82124993]
[1753694436639,0.7,193.07,193.04,5.82124993]
[1753694437170,0.7,193.06,193.02,31.82124993]
[1753694437347,42.14124993,193.05,192.99,94.12124993]
[1753694437552,0.7,193.04,193.0,5.82124993]
[1753694438070,5.18081027,193.02,192.98,6.51124993]
[1753694438269,42.86124993,193.01,192.94,6.3877]
[1753694438468,5.82124993,192.99,192.94,5.82124993]
[1753694438640,37.04,192.98,192.94,5.82124993]
[1753694439270,5.88081027,193.02,192.95,6.10557307]
[1753694439461,36.34,193.01,192.97,5.82124993]
[1753694439845,0.7,193.0,192.97,5.82124993]
[1753694440175,5.88135731,193.0,192.96,5.82124993]
[1753694441240,0.7,193.0,192.96,5.82124993]
[1753694441442,0.7,193.0,192.96,6.51124993]
[1753694442762,5.88137823,193.0,192.96,6.51124993]
[1753694442967,11.70262816,193.0,192.96,0.28432314]
[1753694443165,0.7,192.99,192.96,0.28432314]
[1753694443467,36.32,192.98,192.96,0.28432314]
[1753694444568,37.02,192.98,192.94,0.97432314]
[1753694444768,37.02,192.98,192.95,26.0]
[1753694445273,37.02,192.98,192.94,26.97432314]
[1753694445774,48.02317247,192.98,192.95,26.0]
[1753694445974,48.02317247,192.98,192.94,0.28432314]
[1753694446149,48.02317247,192.98,192.94,0.97432314]
[1753694446567,5.82124993,192.96,192.9,7.185]
[1753694446771,42.14124993,192.95,192.9,13.00624993]
[1753694447070,36.32,192.95,192.91,6.51124993]
[1753694447272,36.32,192.95,192.92,5.82124993]
[1753694447449,36.32,192.95,192.92,6.51124993]
[1753694448578,36.32,192.95,192.91,6.10557307]
[1753694449071,36.99,192.95,192.91,6.78557307]
[1753694450461,36.99,192.95,192.91,11.96927138]
[1753694450664,36.99,192.95,192.91,6.78557307]
[1753694451674,6.49124993,192.94,192.89,5.82124993]
[1753694451866,0.67,192.93,192.89,5.82124993]
[1753694452074,36.3,192.92,192.89,5.82124993]
[1753694452880,0.67,192.91,192.89,0.28432314]
[1753694453184,0.67,192.91,192.88,27.83382314]
[1753694453185,0.67,192.91,192.9,26.0]
[1753694453352,36.3,192.92,192.9,26.0]
[1753694453859,5.85329564,192.93,192.9,26.0]
[1753694453860,36.32,192.91,192.9,32.50124993]
[1753694454880,36.32,192.91,192.9,26.68]
[1753694455070,36.32,192.91,192.9,32.50124993]
[1753694455851,5.18301021,192.94,192.9,32.50124993]
[1753694456054,36.99,192.93,192.9,31.82124993]
[1753694456268,0.67,192.92,192.89,5.82124993]
[1753694456581,0.67,192.91,192.89,5.82124993]
[1753694456779,36.32,192.93,192.85,6.4245]
[1753694456780,36.97,192.9,192.85,6.4245]
[1753694456980,36.97,192.9,192.83,126.2018]
[1753694456981,36.3,192.9,192.86,6.50124993]
[1753694457194,36.3,192.9,192.87,5.82124993]
[1753694457486,36.97,192.9,192.87,5.82124993]
[1753694457786,12.95563163,192.97,192.85,31.46967258]
[1753694457787,0.67,192.93,192.89,5.82124993]
[1753694457991,36.32,192.92,192.91,5.82124993]
[1753694458172,36.32,192.92,192.91,6.50124993]
[1753694458962,0.67,192.95,192.91,6.50124993]
[1753694459164,0.67,192.98,192.94,5.82124993]
[1753694459384,2.70425171,193.0,192.97,5.82124993]
[1753694459592,2.70425171,193.0,192.99,5.82124993]
[1753694459900,39.69425171,193.0,192.96,5.82124993]
[1753694460060,0.67,192.99,192.95,5.82124993]
[1753694460370,0.67,192.98,192.96,5.82124993]
[1753694460556,39.69425171,193.0,192.96,5.82124993]
[1753694460758,39.02425171,193.0,192.98,5.82124993]
[1753694461674,39.69425171,193.0,192.97,5.82124993]
[1753694462480,39.02425171,193.0,192.98,5.82124993]
[1753694463170,39.02425171,193.0,192.97,5.82124993]
[1753694463369,0.67,192.99,192.96,5.82124993]
[1753694463557,44.2056355,193.0,192.96,5.82124993]
[1753694463760,0.67,192.98,192.96,5.82124993]
[1753694463993,36.32,192.97,192.96,5.82124993]
[1753694465496,36.32,192.97,192.96,11.00367115]
[1753694465800,36.32,192.97,192.96,11.68367115]
[1753694465999,36.32,192.97,192.96,5.82124993]
[1753694467803,36.99,192.97,192.94,5.82124993]
[1753694467974,36.32,192.97,192.94,5.82124993]
[1753694468177,0.67,192.96,192.94,5.82124993]
[1753694468481,36.99,192.97,192.94,5.82124993]
[1753694468910,36.99,192.97,192.95,5.82124993]
[1753694469213,36.99,192.97,192.93,31.18320854]
[1753694469214,36.32,192.97,192.96,5.82124993]
[1753694469515,36.32,192.97,192.96,6.50124993]
[1753694470076,36.32,192.97,192.96,11.68367115]
[1753694470608,36.3,192.98,192.96,11.68367115]
[1753694470781,36.3,192.98,192.97,5.82124993]
[1753694471997,36.3,192.98,192.94,6.14723192]
[1753694472198,36.3,192.98,192.95,5.82124993]
[1753694472606,2.70387802,193.03,192.97,6.10557307]
[1753694472788,2.70387802,193.03,193.01,5.82124993]
[1753694473115,36.3,193.02,193.01,5.82124993]
[1753694473408,2.70387802,193.03,193.0,5.82124993]
[1753694473601,36.97,193.02,192.99,31.82124993]
[1753694473784,0.67,193.01,192.99,31.82124993]
[1753694474400,36.3,193.02,193.0,5.82124993]
[1753694475406,36.3,193.02,193.01,5.82124993]
[1753694475584,2.70387802,193.03,193.01,5.82124993]
[1753694475787,3.48310726,193.07,193.02,6.50124993]
[1753694476009,40.16925321,193.06,193.04,5.82124993]
[1753694476211,3.86925321,193.05,193.04,5.82124993]
[1753694476597,3.86925321,193.05,193.03,5.82124993]
[1753694476904,36.3,193.06,193.03,5.82124993]
[1753694477288,36.97,193.06,193.03,5.82124993]
[1753694477495,36.3,193.06,193.05,5.82124993]
[1753694477693,40.17145858,193.06,193.05,6.50124993]
[1753694478728,40.17145858,193.06,193.05,6.78557307]
[1753694479010,36.3,193.06,193.05,6.78557307]
[1753694479818,36.3,193.06,193.05,6.10557307]
[1753694480399,36.26,193.07,193.05,6.10557307]
[1753694480597,36.26,193.07,193.03,89.0]
[1753694480598,0.7,193.06,193.03,94.12124993]
[1753694481408,6.52124993,193.05,193.0,5.82124993]
[1753694481615,42.14033825,193.04,193.0,5.82124993]
[1753694481790,0.7,193.03,193.0,5.82124993]
[1753694482490,0.7,193.02,192.96,6.80164144]
[1753694482695,36.28,193.01,192.97,5.82124993]
[1753694482925,36.98,193.01,192.97,5.82124993]
[1753694483492,36.28,193.01,192.99,26.0]
[1753694483719,36.26,193.01,193.0,6.10557307]
[1753694484032,36.26,193.01,193.0,6.80557307]
[1753694484830,36.26,193.01,193.0,11.98692022]
[1753694485688,0.7,193.05,193.0,11.98692022]
[1753694485995,36.96,193.04,193.01,5.82124993]
[1753694486210,36.96,193.04,193.0,0.28432314]
[1753694486415,0.7,193.03,193.0,0.28432314]
[1753694486600,5.82124993,193.01,192.95,89.0]
[1753694486796,36.96,193.0,192.96,5.82124993]
[1753694487000,0.7,192.99,192.96,5.82124993]
[1753694487602,36.26,193.0,192.96,11.70348187]
[1753694487992,0.7,192.99,192.96,5.82124993]
[1753694488614,0.7,192.99,192.96,0.28432314]
[1753694488819,6.52124993,192.98,192.93,94.12124993]
[1753694489000,42.08124993,192.97,192.93,88.3]
[1753694489198,0.7,192.96,192.91,88.3]
[1753694489391,6.52124993,192.96,192.91,88.3]
[1753694489592,36.26,192.97,192.92,5.82124993]
[1753694489895,47.26342756,192.97,192.92,5.82124993]
[1753694490126,36.26,192.97,192.92,6.80557307]
[1753694490318,36.36,192.96,192.94,5.82124993]
[1753694490508,36.36,192.95,192.94,0.28432314]
[1753694492503,36.36,192.95,192.94,6.10557307]
[1753694492822,36.36,192.95,192.94,11.98844465]
[1753694493125,36.2232968,192.95,192.94,11.98844465]
[1753694493529,5.88189319,192.98,192.94,0.28432314]
[1753694493696,36.34,192.95,192.94,0.28432314]
[1753694494521,36.34,192.95,192.94,6.10557307]
[1753694494696,0.7,192.99,192.95,0.28432314]
[1753694494897,36.36,192.98,192.96,5.82124993]
[1753694495132,37.06,192.98,192.95,6.10557307]
[1753694495331,37.06,192.98,192.95,0.28432314]
[1753694495497,0.7,192.97,192.91,26.0]
[1753694495697,5.82124993,192.94,192.89,5.82124993]
[1753694495994,37.04,192.93,192.9,5.82124993]
[1753694496193,36.34,192.92,192.9,11.7052512]
[1753694496615,36.34,192.92,192.91,5.82124993]
[1753694496820,36.34,192.92,192.9,5.88400127]
[1753694497127,36.34,192.92,192.91,5.9634115]
[1753694497315,36.34,192.92,192.91,6.80557307]
[1753694497899,36.34,192.92,192.91,6.10557307]
[1753694498220,36.34,192.92,192.91,0.28432314]
[1753694498393,36.34,192.92,192.89,26.7]
[1753694498394,36.34,192.92,192.89,26.0]
[1753694498599,0.7,192.91,192.89,26.0]
[1753694499007,0.7,192.9,192.89,0.14216157]
[1753694499510,0.7,192.9,192.89,0.28432314]
[1753694499714,37.04,192.92,192.89,0.28432314]
[1753694499928,36.34,192.92,192.89,0.28432314]
[1753694500225,0.7,192.91,192.89,0.28432314]
[1753694501230,0.7,192.9,192.88,0.28432314]
[1753694501543,36.34,192.89,192.88,6.80557307]
[1753694501721,36.34,192.89,192.88,6.10557307]
[1753694503211,36.32,192.89,192.88,6.10557307]
[1753694503436,36.34,192.89,192.88,11.99014378]
[1753694504443,36.34,192.89,192.88,6.10557307]
[1753694505341,36.34,192.89,192.88,11.29014378]
[1753694505540,36.34,192.89,192.88,11.99014378]
[1753694505836,36.34,192.89,192.88,0.28432314]
[1753694506026,36.34,192.89,192.88,37.29014378]
[1753694506228,36.34,192.89,192.88,37.99014378]
[1753694506625,37.04,192.89,192.88,31.82124993]
[1753694506944,37.04,192.89,192.88,26.0]
[1753694507729,36.34,192.89,192.88,5.82124993]
[1753694508725,36.34,192.89,192.87,31.82124993]
[1753694509727,37.05,192.89,192.87,31.82124993]
[1753694511312,36.34,192.89,192.87,31.82124993]
[1753694514342,36.34,192.89,192.87,26.0]
[1753694514543,36.34,192.89,192.87,31.82124993]
[1753694515348,37.05,192.89,192.87,31.82124993]
[1753694516643,37.05,192.89,192.87,37.00603275]
[1753694516845,36.34,192.89,192.88,5.82124993]
[1753694517045,36.34,192.89,192.88,6.77557307]
[1753694517221,36.34,192.89,192.88,11.29014378]
[1753694517722,36.3,192.89,192.88,11.29014378]
[1753694517927,0.71,192.92,192.88,11.29014378]
[1753694518124,0.71,192.91,192.88,11.29014378]
[1753694518324,36.3,192.9,192.88,11.29014378]
[1753694518917,36.3,192.9,192.89,5.82124993]
[1753694519120,2.70520364,192.93,192.89,11.00547785]
[1753694519348,37.01,192.92,192.89,11.00547785]
[1753694519550,36.3,192.92,192.89,11.00547785]
[1753694519741,36.3,192.92,192.89,6.49124993]
[1753694519924,37.01,192.92,192.89,5.82124993]
[1753694520278,2.70520364,192.93,192.88,6.13881482]
[1753694520279,2.70520364,192.93,192.9,5.82124993]
[1753694520446,0.71,192.97,192.92,6.10557307]
[1753694520650,0.71,192.97,192.96,5.82124993]
[1753694520864,2.70427328,192.99,192.96,6.49124993]
[1753694521162,36.38,193.0,192.99,5.18161562]
[1753694521343,22.14109922,193.06,193.0,0.28432314]
[1753694521344,2.70308348,193.04,193.0,0.28432314]
[1753694521647,2.70308348,193.04,193.03,5.82124993]
[1753694521861,39.81308348,193.04,193.01,5.82124993]
[1753694522161,39.81308348,193.04,192.99,5.82124993]
[1753694522162,0.71,193.03,192.99,5.82124993]
[1753694522935,0.71,193.03,192.98,5.82124993]
[1753694523140,5.89063689,193.03,192.98,5.82124993]
[1753694523452,0.71,193.02,192.98,5.82124993]
[1753694523625,0.71,193.02,192.97,5.82124993]
[1753694523932,11.00188682,193.03,192.98,5.82124993]
[1753694524128,0.71,193.01,192.98,5.82124993]
[1753694524458,36.42,193.0,192.98,5.82124993]
[1753694525155,37.13,193.0,192.98,5.82124993]
[1753694525449,36.42,193.0,192.98,5.82124993]
[1753694525657,0.71,192.99,192.95,26.28432314]
[1753694525842,36.42,193.0,192.95,26.28432314]
[1753694525843,0.71,192.98,192.95,31.82124993]
[1753694526043,0.71,192.97,192.95,31.82124993]
[1753694526351,36.42,192.96,192.95,26.0]
[1753694526538,36.42,192.96,192.95,31.82124993]
[1753694526926,36.42,192.98,192.96,0.28432314]
[1753694527141,36.42,192.98,192.97,6.49124993]
[1753694527344,36.42,192.98,192.97,11.95772573]
[1753694527540,36.42,192.99,192.98,0.28432314]
[1753694527766,36.42,192.99,192.98,6.77557307]
[1753694528545,36.42,192.99,192.98,11.9574572]
[1753694528741,2.70308348,193.04,192.98,11.9574572]
[1753694528954,36.42,193.03,193.0,5.82124993]
[1753694529155,0.71,193.02,193.0,5.82124993]
[1753694529839,0.71,193.02,192.99,5.82124993]
[1753694531753,41.60056902,193.03,192.98,0.28432314]
[1753694531928,0.71,193.01,192.97,5.82124993]
[1753694532131,36.42,193.03,192.98,6.49124993]
[1753694532334,36.42,193.03,192.99,0.67]
[1753694532559,37.13,193.03,193.0,5.82124993]
[1753694532850,36.42,193.03,192.98,0.28432314]
[1753694533050,0.71,193.02,192.99,5.82124993]
[1753694533945,36.42,193.03,192.99,0.67]
[1753694534145,36.42,193.03,193.0,5.82124993]
[1753694534539,37.13,193.03,193.0,5.82124993]
[1753694535740,0.71,193.02,192.99,5.82124993]
[1753694536467,0.71,193.01,192.99,5.82124993]
[1753694536648,36.38,193.0,192.99,5.82124993]
[1753694537974,36.38,193.0,192.99,11.00286555]
[1753694538138,36.38,193.0,192.99,5.82124993]
[1753694539954,37.1,193.0,192.97,31.82124993]
[1753694540345,0.72,192.99,192.97,26.0]
[1753694540546,36.38,193.0,192.97,26.0]
[1753694540748,0.72,192.98,192.97,26.0]
[1753694540968,6.54124993,192.98,192.93,88.3]
[1753694541166,42.92124993,192.97,192.92,31.82124993]
[1753694541366,0.72,192.96,192.92,31.82124993]
[1753694541549,0.72,192.96,192.93,5.82124993]
[1753694542462,36.38,192.97,192.94,5.82124993]
[1753694542964,36.38,192.97,192.93,6.48124993]
[1753694542965,37.1,192.97,192.93,6.48124993]
[1753694543377,37.1,192.97,192.93,11.66444612]
[1753694544468,36.38,192.97,192.94,6.10557307]
[1753694544678,29.91083653,193.06,192.96,5.82124993]
[1753694544679,0.72,193.0,192.96,5.82124993]
[1753694544851,36.36,192.99,192.96,5.82124993]
[1753694545248,37.08,192.99,192.96,5.82124993]
[1753694545554,6.54124993,192.98,192.93,11.00444612]
[1753694545760,0.72,192.97,192.93,11.00444612]
[1753694545963,36.38,192.96,192.93,5.82124993]
[1753694546370,0.72,192.95,192.93,5.82124993]
[1753694546852,0.72,192.95,192.94,26.0]
[1753694547280,36.38,192.96,192.94,26.0]
[1753694547574,37.1,192.96,192.93,5.82124993]
[1753694547770,36.38,192.96,192.93,5.82124993]
[1753694547950,36.38,192.96,192.93,6.48124993]
[1753694548359,36.38,192.96,192.93,5.82124993]
[1753694548656,37.1,192.96,192.93,5.82124993]
[1753694548987,37.1,192.96,192.92,26.0]
[1753694548988,0.72,192.95,192.92,26.0]
[1753694549165,5.82124993,192.94,192.88,100.2854659]
[1753694549362,36.36,192.93,192.89,5.82124993]
[1753694549678,5.82124993,192.95,192.88,5.1843659]
[1753694549679,5.82124993,192.98,192.92,5.82124993]
[1753694549981,36.38,192.97,192.94,5.82124993]
[1753694550163,36.38,192.97,192.93,5.82124993]
[1753694550355,0.72,192.96,192.93,5.82124993]
[1753694550556,36.38,192.97,192.93,5.82124993]
[1753694550780,36.38,192.97,192.93,6.48124993]
[1753694551985,36.38,192.97,192.93,11.66444122]
[1753694552558,37.1,192.97,192.93,11.66444122]
[1753694553573,0.72,192.96,192.92,0.28432314]
[1753694553773,0.72,192.95,192.93,5.82124993]
[1753694554075,36.36,192.94,192.92,0.28432314]
[1753694554265,36.36,192.94,192.92,6.10557307]
[1753694555362,36.34,192.93,192.92,6.10557307]
[1753694555574,0.72,192.95,192.92,6.10557307]
[1753694555778,36.34,192.93,192.92,6.10557307]
[1753694556170,36.34,192.93,192.92,11.28906881]
[1753694556368,0.72,193.0,192.92,11.94906881]
[1753694556556,36.34,192.99,192.97,5.82124993]
[1753694557158,2.70402341,193.01,192.98,5.82124993]
[1753694557472,2.70402341,193.01,192.98,6.48124993]
[1753694557685,37.06,193.0,192.96,26.0]
[1753694557858,36.34,193.0,192.97,5.82124993]
[1753694558064,0.72,192.99,192.93,114.3]
[1753694558277,6.54124993,192.99,192.94,5.82124993]
[1753694558469,0.72,192.98,192.94,5.82124993]
[1753694558763,36.36,192.97,192.94,5.82124993]
[1753694559065,0.72,192.96,192.94,5.82124993]
[1753694559864,0.72,192.95,192.92,5.9634115]
[1753694560060,36.36,192.94,192.92,5.9634115]
[1753694560873,36.36,192.94,192.92,5.82124993]
[1753694561791,36.36,192.94,192.92,11.00468899]
[1753694561990,0.72,192.98,192.93,6.48124993]
[1753694562295,36.34,192.97,192.94,6.48124993]
[1753694562900,36.34,192.97,192.96,5.82124993]
[1753694563268,36.34,192.97,192.95,6.48124993]
[1753694563468,0.72,192.99,192.95,5.82124993]
[1753694563662,37.06,192.98,192.95,5.82124993]
[1753694564895,0.72,192.97,192.93,5.82124993]
[1753694565211,0.72,192.96,192.93,5.82124993]
[1753694565370,36.32,192.95,192.93,5.82124993]
[1753694565882,37.04,192.95,192.92,0.28432314]
[1753694566097,0.72,192.94,192.92,5.82124993]
[1753694566282,0.72,192.94,192.93,26.0]
[1753694566976,0.72,192.94,192.9,31.82124993]
[1753694567181,47.32407079,192.95,192.92,26.0]
[1753694567182,0.72,192.93,192.92,26.0]
[1753694567689,42.22282086,192.95,192.92,26.0]
[1753694567897,42.22282086,192.95,192.9,5.82124993]
[1753694568082,41.50282086,192.95,192.9,11.00524956]
[1753694568282,0.67,192.94,192.9,11.00524956]
[1753694568473,0.67,192.93,192.9,5.82124993]
[1753694568677,36.32,192.92,192.9,5.82124993]
[1753694569570,36.99,192.92,192.9,5.82124993]
[1753694569794,36.32,192.92,192.9,5.82124993]
[1753694570799,36.99,192.92,192.9,5.82124993]
[1753694572100,36.32,192.92,192.89,31.18422596]
[1753694572398,36.32,192.92,192.9,5.82124993]
[1753694574607,36.99,192.92,192.91,26.0]
[1753694575004,36.32,192.92,192.91,26.0]
[1753694575218,36.32,192.92,192.91,32.48124993]
[1753694575373,8.55606083,192.99,192.92,0.28432314]
[1753694575576,36.3,192.98,192.94,5.82124993]
[1753694575808,36.97,192.98,192.94,6.48124993]
[1753694576179,36.97,192.98,192.95,5.82124993]
[1753694576700,36.3,192.98,192.95,6.48124993]
[1753694577388,36.3,192.98,192.96,5.82124993]
[1753694577585,36.3,192.98,192.97,5.82124993]
[1753694577781,36.97,192.98,192.96,5.82124993]
[1753694578303,2.7043737,192.99,192.97,31.82124993]
[1753694578504,36.3,192.98,192.97,31.84215266]
[1753694578687,36.3,192.98,192.97,37.66340259]
[1753694579194,36.3,192.98,192.97,37.94772573]
[1753694581211,36.3,192.98,192.97,31.82124993]
[1753694581418,36.3,192.98,192.97,5.82124993]
[1753694582708,0.67,193.01,192.97,6.48124993]
[1753694582888,36.3,193.0,192.98,5.82124993]
[1753694583200,36.3,193.0,192.99,5.82124993]
[1753694583610,36.28,193.0,192.99,6.48124993]
[1753694583788,2.70346786,193.03,192.99,6.48124993]
[1753694583992,2.70346786,193.03,193.02,5.82124993]
[1753694584195,38.98346786,193.03,193.02,5.82124993]
[1753694586296,38.98346786,193.03,193.02,11.0020602]
[1753694587014,38.98346786,193.03,193.01,5.18101393]
[1753694587218,39.65346786,193.03,193.02,5.82124993]
[1753694587524,38.98346786,193.03,193.02,5.82124993]
[1753694589088,2.70346786,193.03,193.02,5.82124993]
[1753694589288,38.96346786,193.03,193.02,5.82124993]
[1753694590130,2.70346786,193.03,193.02,5.82124993]
[1753694590324,38.96346786,193.03,193.02,5.82124993]
[1753694590814,39.63346786,193.03,193.01,5.82124993]
[1753694591012,0.67,193.02,193.01,5.82124993]
[1753694591694,36.93,193.02,193.01,5.82124993]
[1753694591907,36.93,193.02,192.98,5.82124993]
[1753694592117,0.67,193.01,192.99,26.0]
[1753694592331,36.26,193.0,192.97,5.82124993]
[1753694592489,36.26,193.0,192.96,5.82124993]
[1753694592685,0.67,192.99,192.96,5.82124993]
[1753694592911,36.26,192.98,192.94,5.82124993]
[1753694593217,0.67,192.97,192.96,26.0]
[1753694596021,36.26,192.98,192.94,11.00417039]
[1753694596324,36.26,192.98,192.95,6.48124993]
[1753694597096,36.26,192.98,192.96,5.82124993]
[1753694597718,36.26,192.98,192.94,31.82124993]
[1753694597898,0.67,192.97,192.96,26.0]
[1753694598097,0.67,192.97,192.93,5.84314008]
[1753694598098,0.67,192.97,192.93,5.82124993]
[1753694598411,36.9,192.96,192.93,5.82124993]
[1753694598606,36.24,192.96,192.94,6.53124993]
[1753694599918,36.24,192.96,192.95,5.82124993]
[1753694600136,36.24,192.96,192.95,6.53124993]
[1753694602025,36.24,192.96,192.95,11.71393974]
[1753694602621,36.24,192.96,192.95,11.00393974]
[1753694605829,36.24,192.96,192.95,5.82124993]
[1753694606128,36.9,192.96,192.94,11.00418319]
[1753694606619,36.24,192.96,192.94,11.00418319]
[1753694606852,0.66,192.98,192.94,11.00418319]
[1753694607033,36.24,192.97,192.94,11.00418319]
[1753694607410,36.24,192.97,192.91,114.3]
[1753694607612,0.66,192.96,192.93,5.82124993]
[1753694607809,0.66,192.96,192.92,5.46781888]
[1753694607810,36.24,192.97,192.95,5.82124993]
[1753694608247,36.24,192.97,192.95,6.53124993]
[1753694610436,36.24,192.97,192.95,5.82124993]
[1753694612208,36.24,192.97,192.94,11.00416462]
[1753694612438,36.24,192.97,192.94,11.71416462]
[1753694612942,36.24,192.97,192.96,5.82124993]
[1753694613440,36.24,192.97,192.94,11.00416462]
[1753694613643,36.24,192.97,192.94,11.71416462]
[1753694613948,36.24,192.97,192.95,0.71]
[1753694614127,36.24,192.97,192.95,6.53124993]
[1753694614936,3.36413347,192.99,192.95,6.53124993]
[1753694614937,36.24,192.96,192.95,11.71387627]
[1753694618943,36.24,192.96,192.95,11.00387627]
[1753694619449,2.70413347,192.99,192.95,11.99819941]
[1753694619651,0.66,193.03,192.98,5.82124993]
[1753694619851,26.24861214,193.05,192.96,5.82124993]
[1753694619852,0.66,193.01,192.96,5.82124993]
[1753694620006,36.24,193.0,192.96,5.82124993]
[1753694620515,0.66,192.99,192.95,11.00387627]
[1753694620714,0.66,192.99,192.94,32.10557307]
[1753694620930,36.24,193.0,192.95,11.00392232]
[1753694621105,0.66,192.99,192.95,11.71392232]
[1753694623134,0.66,192.98,192.95,11.00392918]
[1753694623334,36.24,192.97,192.95,11.00392918]
[1753694623933,36.24,192.97,192.96,5.82124993]
[1753694624543,36.24,192.97,192.95,11.71392918]
[1753694625744,36.9,192.97,192.95,5.82124993]
[1753694625917,36.9,192.97,192.94,37.28845709]
[1753694626817,0.66,192.96,192.91,94.12124993]
[1753694627142,5.82124993,192.95,192.89,11.71546933]
[1753694627345,42.72124993,192.94,192.89,5.82124993]
[1753694627559,42.72124993,192.94,192.87,5.82124993]
[1753694627560,5.82124993,192.92,192.87,5.82124993]
[1753694627721,36.9,192.91,192.87,5.82124993]
[1753694627928,0.66,192.9,192.87,5.82124993]
[1753694628649,36.24,192.91,192.87,11.69606673]
[1753694628864,36.24,192.91,192.88,6.51124993]
[1753694629025,36.24,192.9,192.88,6.51124993]
[1753694629630,36.24,192.9,192.88,5.82124993]
[1753694629832,36.24,192.9,192.89,6.51124993]
[1753694630126,36.24,192.9,192.89,6.79557307]
[1753694630360,36.24,192.9,192.89,5.82124993]
[1753694631057,36.92,192.9,192.88,5.82124993]
[1753694631257,36.24,192.9,192.88,5.82124993]
[1753694632356,36.24,192.9,192.89,6.51124993]
[1753694633056,36.24,192.9,192.89,5.82124993]
[1753694633830,36.24,192.9,192.89,11.979875]
[1753694635755,36.24,192.9,192.89,11.289875]
[1753694636631,36.92,192.9,192.89,0.28432314]
[1753694636839,36.24,192.9,192.89,0.28432314]
[1753694637329,36.24,192.9,192.88,11.00579021]
[1753694638361,36.24,192.9,192.88,11.69579021]
[1753694638736,36.24,192.9,192.88,5.82124993]
[1753694638937,36.92,192.9,192.87,0.28432314]
[1753694639155,36.92,192.9,192.88,5.82124993]
[1753694640568,36.92,192.9,192.87,5.46908087]
[1753694640862,36.92,192.9,192.88,5.82124993]
[1753694641061,0.68,192.89,192.87,5.82124993]
[1753694641358,0.68,192.89,192.86,125.30635646]
[1753694642145,0.68,192.89,192.86,125.99635646]
[1753694642350,0.68,192.89,192.86,37.69635646]
[1753694642549,36.24,192.9,192.86,31.82124993]
[1753694643056,5.82124993,192.88,192.83,5.82124993]
[1753694643371,36.92,192.87,192.83,31.82124993]
[1753694643663,36.92,192.87,192.83,6.51124993]